bitfinex/quotes_ETHUSD_20241122
["timestamp","ask_amount","ask_price","bid_price","bid_amount"]
[1732317682706,0.7982,3311.5,3310.9,0.06513751]
[1732317690330,0.7982,3311.5,3310.6,0.3011]
[1732317690539,0.7982,3311.5,3310.7,0.06508981]
[1732317691939,0.7982,3311.5,3310.8,0.3011]
[1732317692123,0.7982,3311.5,3310.9,0.06512348]
[1732317700349,0.7982,3311.5,3310.7,1.31071455]
[1732317700565,0.7982,3311.5,3310.8,0.06486112]
[1732317702334,0.5819113,3311.4,3310.8,0.06486112]
[1732317702535,0.5819113,3311.4,3309.7,0.8214]
[1732317702536,0.55,3311.1,3309.7,0.8214]
[1732317702739,0.7587,3310.9,3309.7,2.13211455]
[1732317702937,0.7906113,3310.8,3309.7,2.13211455]
[1732317703153,0.7587,3310.7,3309.8,0.35966373]
[1732317703331,0.7587,3310.5,3309.8,1.67037828]
[1732317705969,0.0319113,3310.4,3309.8,1.67037828]
[1732317706565,0.7587,3310.5,3309.8,1.67037828]
[1732317708527,0.7587,3310.5,3309.8,1.83741611]
[1732317708844,0.7587,3310.5,3310.2,1.31071455]
[1732317709187,0.7587,3310.5,3310.3,0.05661161]
[1732317709466,0.7587,3310.5,3310.2,1.31071455]
[1732317709634,0.7587,3310.5,3310.4,0.05661161]
[1732317709834,0.7587,3310.5,3310.2,1.31071455]
[1732317710334,0.7587,3310.5,3310.3,0.05661161]
[1732317710534,0.7587,3310.5,3310.2,1.31071455]
[1732317710877,0.7587,3310.5,3310.3,0.05661161]
[1732317711235,0.7587,3310.5,3310.2,1.31071455]
[1732317711435,0.7587,3310.5,3310.4,0.05661161]
[1732317711635,0.7587,3310.5,3310.2,1.31071455]
[1732317711835,0.7587,3310.5,3310.4,0.05661161]
[1732317712390,0.7587,3310.5,3310.2,1.31071455]
[1732317712749,0.7587,3310.5,3310.3,0.05661161]
[1732317712948,0.7587,3310.5,3310.2,1.31071455]
[1732317713258,0.7587,3310.5,3310.3,0.05661161]
[1732317713784,0.7587,3310.5,3310.4,0.05661161]
[1732317713981,0.7587,3310.5,3310.2,1.31071455]
[1732317714187,0.7587,3310.5,3310.3,0.05661161]
[1732317714486,0.7587,3310.5,3309.9,0.3011]
[1732317714668,0.7587,3310.5,3309.8,0.16703783]
[1732317714669,0.55,3310.4,3309.8,1.31071455]
[1732317714857,0.55,3310.4,3309.8,1.471896]
[1732317715648,0.7587,3310.5,3310.0,1.31071455]
[1732317718049,0.7587,3310.5,3309.8,1.471896]
[1732317718569,0.7587,3310.5,3309.7,0.3011]
[1732317718788,0.55,3310.3,3309.5,1.61181455]
[1732317718960,0.55,3310.1,3309.5,1.61181455]
[1732317719148,0.7948,3310.0,3309.5,1.61181455]
[1732317719575,0.55,3309.9,3309.5,1.61181455]
[1732317720788,0.55,3309.9,3309.7,1.31071455]
[1732317722956,0.7948,3310.0,3309.7,1.31071455]
[1732317723158,0.0319113,3310.9,3309.7,1.31071455]
[1732317723159,0.7948,3310.7,3309.7,1.471896]
[1732317723528,0.55,3310.4,3309.7,1.471896]
[1732317723692,0.55,3310.4,3309.7,1.31071455]
[1732317726271,0.55,3310.2,3309.7,1.31071455]
[1732317726652,0.55,3310.4,3309.7,1.31071455]
[1732317727202,0.0319113,3310.3,3309.7,1.31071455]
[1732317727568,0.8161,3310.2,3309.7,1.31071455]
[1732317727971,0.8161,3310.2,3309.5,1.61181455]
[1732317728174,0.8161,3310.2,3309.5,1.85427601]
[1732317728409,0.8161,3310.2,3309.6,0.05687421]
[1732317729877,0.8161,3310.2,3309.7,1.31071455]
[1732317730581,0.8161,3310.2,3309.8,0.05687421]
[1732317730788,0.8161,3310.2,3309.7,1.31071455]
[1732317731018,0.8161,3310.2,3309.8,0.05687421]
[1732317731169,0.8161,3310.2,3309.7,1.49614215]
[1732317731375,0.8161,3310.2,3309.8,0.05687421]
[1732317731573,0.8161,3310.2,3309.7,1.49614215]
[1732317731817,0.8161,3310.2,3309.8,0.0549784]
[1732317731992,0.8161,3310.2,3309.7,1.49614215]
[1732317732181,0.8161,3310.2,3309.8,0.0549784]
[1732317732373,0.8161,3310.2,3309.7,1.49614215]
[1732317732579,0.8161,3310.2,3309.8,0.0549784]
[1732317732815,0.8161,3310.2,3309.7,1.49614215]
[1732317733028,0.8205,3310.9,3310.0,1.31071455]
[1732317733323,0.8205,3310.9,3310.1,0.05499238]
[1732317733479,0.8205,3310.9,3310.2,1.31071455]
[1732317733683,0.8205,3310.9,3310.2,1.36567619]
[1732317734081,0.8205,3310.9,3310.3,0.8049]
[1732317734295,0.8205,3310.9,3310.4,1.31071455]
[1732317734521,0.8205,3310.9,3310.4,1.36567619]
[1732317735816,0.55,3310.8,3310.4,1.36567619]
[1732317738925,0.55,3310.8,3310.4,0.05496164]
[1732317739328,0.5819113,3310.8,3310.4,0.05496164]
[1732317739622,0.55,3310.8,3310.2,1.31071455]
[1732317739832,0.55,3310.8,3310.5,0.05490997]
[1732317740032,0.55,3310.8,3310.2,1.31071455]
[1732317740319,0.5819113,3310.8,3310.2,1.31071455]
[1732317740684,0.5819113,3310.8,3310.3,0.05490997]
[1732317741220,0.5819113,3310.8,3310.2,1.31071455]
[1732317741398,0.5819113,3310.8,3310.4,0.05490997]
[1732317741580,0.5819113,3310.8,3310.2,1.31071455]
[1732317741787,0.5819113,3310.8,3310.5,0.05490997]
[1732317741987,0.5819113,3310.8,3310.6,0.05490997]
[1732317742218,0.5819113,3310.8,3310.2,1.31071455]
[1732317742606,0.5819113,3310.8,3310.3,0.05490997]
[1732317743135,0.5819113,3310.8,3310.4,0.05490997]
[1732317743483,0.5819113,3310.8,3310.0,2.11561455]
[1732317743685,0.5819113,3310.8,3310.5,0.05490997]
[1732317743978,0.5819113,3310.8,3310.0,2.11561455]
[1732317744215,0.5819113,3310.8,3310.6,0.05490997]
[1732317744521,0.5819113,3310.8,3310.0,2.11561455]
[1732317744522,0.5819113,3310.8,3310.7,0.05490997]
[1732317744702,0.5819113,3310.8,3310.2,1.31071455]
[1732317744914,0.5819113,3310.8,3310.7,0.05490997]
[1732317745097,0.5819113,3310.8,3310.2,1.31071455]
[1732317745298,0.55,3310.8,3310.7,0.05490997]
[1732317745520,0.55,3310.8,3310.2,1.31071455]
[1732317745818,0.55,3310.8,3310.7,0.05490997]
[1732317746733,0.8205,3311.5,3310.6,1.31071455]
[1732317746891,0.8205,3311.5,3311.0,1.31071455]
[1732317747390,0.8205,3311.5,3311.1,0.05487504]
[1732317750433,0.8205,3311.5,3310.9,0.8049]
[1732317751034,0.8205,3311.5,3311.0,0.05478284]
[1732317752134,0.55,3311.7,3311.0,1.36549739]
[1732317752341,0.55,3311.7,3311.0,1.58253713]
[1732317752944,0.55,3311.7,3311.0,4.58253713]
[1732317753445,0.55,3311.7,3311.2,1.31071455]
[1732317753641,0.55,3311.7,3311.0,0.27182258]
[1732317753642,0.55,3311.7,3311.0,4.58253713]
[1732317753848,0.55,3311.7,3311.0,4.52775429]
[1732317754048,0.5819113,3311.7,3311.1,0.05478284]
[1732317755251,0.55,3311.5,3311.1,0.05478284]
[1732317755421,0.55,3311.5,3310.9,1.106]
[1732317755807,0.55,3311.5,3311.0,0.05283525]
[1732317757007,0.55,3311.5,3311.0,3.05283525]
[1732317757534,0.7564,3311.6,3311.0,3.05283525]
[1732317757740,0.7564,3311.6,3311.0,0.05283525]
[1732317758428,0.75926299,3311.8,3311.0,4.61050478]
[1732317758641,0.75926299,3311.8,3311.0,1.3635498]
[1732317758810,0.75926299,3311.8,3311.1,0.762]
[1732317759118,0.75926299,3311.8,3311.2,3.05284502]
[1732317759724,0.75926299,3311.8,3311.2,0.05284502]
[1732317759932,0.75926299,3311.8,3311.2,3.05284502]
[1732317760137,0.75926299,3311.8,3311.3,0.3814845]
[1732317760348,0.00286299,3311.8,3311.3,0.3814845]
[1732317760653,0.00286299,3311.8,3311.4,0.81484502]
[1732317761146,0.00286299,3311.8,3311.6,1.31071455]
[1732317761854,0.00286299,3311.8,3311.7,0.05284502]
[1732317762649,0.00286299,3311.8,3311.7,0.81484502]
[1732317772287,0.00286299,3311.8,3311.7,3.81484502]
[1732317772459,0.00286299,3311.8,3311.7,4.32740098]
[1732317772789,0.00286299,3311.8,3311.7,0.56540098]
[1732317773289,0.00286299,3311.8,3311.7,3.05284502]
[1732317773459,0.00286299,3311.8,3311.7,0.05284502]
[1732317773963,0.00286299,3311.8,3311.4,2.38701455]
[1732317774155,0.00286299,3311.8,3311.7,0.050619]
[1732317774355,0.00286299,3311.8,3311.4,2.38701455]
[1732317774596,0.00286299,3311.8,3311.7,0.050619]
[1732317774778,0.00286299,3311.8,3311.5,3.23870146]
[1732317774979,0.00286299,3311.8,3311.7,0.04893231]
[1732317775362,0.00286299,3311.8,3311.5,3.23870146]
[1732317775576,0.00286299,3311.8,3311.7,0.04891835]
[1732317775780,0.00286299,3311.8,3311.5,3.23870146]
[1732317776136,0.00286299,3311.8,3311.7,0.04891835]
[1732317776260,0.00286299,3311.8,3311.6,0.61148995]
[1732317793937,0.00286299,3311.8,3311.7,1.31071455]
[1732317794851,0.00286299,3311.8,3311.7,1.35965384]
[1732317795070,0.00286299,3311.8,3311.7,1.87574653]
[1732317795864,0.00286299,3311.8,3311.7,5.92814653]
[1732317796834,0.00286299,3311.8,3311.7,5.62704653]
[1732317797060,0.00286299,3311.8,3311.7,5.92814653]
[1732317801663,0.00286299,3311.8,3311.7,1.87574653]
[1732317801872,0.00286299,3311.8,3311.7,1.35965384]
[1732317802368,0.00286299,3311.8,3311.7,1.66075384]
[1732317803642,0.00286299,3311.8,3311.7,0.04893929]
[1732317813907,1.33536299,3311.8,3311.7,0.04893929]
[1732317814274,0.55,3311.5,3310.7,1.31071455]
[1732317814472,0.55,3311.3,3310.7,1.31071455]
[1732317814682,0.55,3311.3,3310.8,0.04725055]
[1732317815371,0.55,3311.1,3310.8,0.04725055]
[1732317815910,0.55,3311.1,3310.7,1.61181455]
[1732317816199,0.55,3311.1,3310.8,3.04736361]
[1732317816506,0.55,3311.1,3310.8,0.04736361]
[1732317816805,0.55,3311.1,3310.8,3.04736361]
[1732317817111,0.55,3311.1,3310.8,0.04736361]
[1732317817476,0.55,3311.1,3310.8,3.04736361]
[1732317818085,0.55,3311.1,3310.8,0.04736361]
[1732317818604,1.3325,3310.9,3310.8,0.04736361]
[1732317818772,1.3325,3310.9,3310.4,1.31071455]
[1732317818978,0.55,3310.5,3310.1,1.31071455]
[1732317820612,0.55,3310.3,3310.1,1.31071455]
[1732317820983,0.55,3310.5,3310.1,1.31071455]
[1732317822183,0.55,3310.3,3310.1,1.31071455]
[1732317822713,0.55,3310.5,3310.1,1.31071455]
[1732317823422,0.55,3310.3,3310.1,1.31071455]
[1732317824133,0.55,3310.5,3310.1,1.31071455]
[1732317826928,0.55,3310.3,3310.1,1.31071455]
[1732317827524,0.55,3310.5,3310.1,1.31071455]
[1732317828600,0.55,3310.3,3310.1,1.31071455]
[1732317828795,0.55,3310.5,3310.1,1.31071455]
[1732317830225,0.5819113,3310.5,3310.2,0.0443997]
[1732317830427,0.55,3310.5,3310.3,1.31071455]
[1732317830732,0.0319113,3311.6,3310.4,0.8196]
[1732317830733,0.7564,3311.5,3310.4,0.8196]
[1732317830914,0.7564,3311.5,3311.1,1.31071455]
[1732317831425,0.7564,3311.3,3311.2,0.04458266]
[1732317831597,0.7564,3311.3,3310.6,1.31071455]
[1732317831802,0.0319113,3311.2,3310.6,1.31071455]
[1732317832007,0.55,3311.1,3310.6,1.31071455]
[1732317832203,0.55,3310.9,3310.6,1.31071455]
[1732317832592,0.5819113,3311.2,3310.6,1.31071455]
[1732317833004,0.5819113,3311.2,3310.4,1.31071455]
[1732317833231,0.55,3311.0,3310.4,1.31071455]
[1732317833430,0.55,3310.8,3310.4,1.31071455]
[1732317834234,0.55,3310.8,3310.5,0.044524]
[1732317834407,0.5819113,3311.0,3310.5,0.044524]
[1732317834612,0.5819113,3311.0,3310.4,1.31071455]
[1732317834903,0.5819113,3311.0,3310.6,0.04453377]
[1732317835104,0.5819113,3311.0,3310.4,1.31071455]
[1732317835311,0.55,3311.0,3310.4,1.31071455]
[1732317835504,0.5819113,3311.0,3310.4,1.31071455]
[1732317836194,0.5819113,3311.0,3310.5,0.04304978]
[1732317837135,0.55,3310.8,3310.5,3.04304978]
[1732317837290,1.34,3310.6,3310.5,0.04304978]
[1732317837695,1.34,3310.6,3310.0,1.31071455]
[1732317837935,1.34,3310.6,3310.5,0.04305816]
[1732317838190,1.34,3310.6,3310.5,0.04307073]
[1732317838507,1.34,3310.6,3310.0,1.31071455]
[1732317838826,1.34,3310.6,3310.2,3.0]
[1732317838998,1.34,3310.6,3310.1,0.04307073]
[1732317839198,1.34,3310.6,3310.0,1.31071455]
[1732317839531,1.34,3310.6,3310.2,0.04307073]
[1732317839830,1.34,3310.6,3310.3,0.04311124]
[1732317840050,1.34,3310.6,3310.0,1.31071455]
[1732317840265,1.34,3310.6,3310.4,0.04311124]
[1732317840432,1.34,3310.6,3310.2,1.31071455]
[1732317840629,1.34,3310.6,3310.5,0.04311124]
[1732317840814,1.34,3310.6,3310.2,1.31071455]
[1732317841341,0.0319113,3310.5,3310.2,1.31071455]
[1732317841673,0.55,3310.4,3310.3,0.04311124]
[1732317841816,0.55,3310.5,3310.3,0.04311124]
[1732317842017,0.55,3310.5,3310.2,1.31071455]
[1732317842220,0.55,3310.5,3310.4,0.04311124]
[1732317842517,0.5819113,3310.5,3310.4,0.04311124]
[1732317842720,0.55,3310.5,3310.2,3.0]
[1732317842952,0.55,3310.5,3310.3,0.04312661]
[1732317843166,0.55,3310.5,3310.0,1.31071455]
[1732317843318,0.55,3310.3,3310.0,1.31071455]
[1732317843830,0.55,3310.5,3310.0,1.31071455]
[1732317844637,0.55,3310.5,3309.8,1.31071455]
[1732317844943,0.55,3310.3,3309.8,1.31071455]
[1732317845120,0.55,3310.1,3309.8,1.31071455]
[1732317845453,0.55,3310.5,3310.0,1.31071455]
[1732317846665,0.5819113,3310.5,3310.0,1.31071455]
[1732317847552,0.55,3310.5,3310.0,1.31071455]
[1732317848422,0.5819113,3310.5,3310.0,1.31071455]
[1732317848721,0.55,3310.5,3310.1,0.04314896]
[1732317854352,0.7632,3311.1,3310.4,1.31071455]
[1732317854543,0.0319113,3311.0,3310.7,1.31071455]
[1732317854739,0.0319113,3311.0,3310.8,0.04312241]
[1732317855376,0.7632,3311.1,3310.5,1.31071455]
[1732317855614,0.0319113,3311.0,3310.6,0.04312241]
[1732317855878,0.55,3310.7,3310.2,1.31071455]
[1732317856595,0.55,3310.5,3310.0,1.31071455]
[1732317856889,0.55,3310.3,3310.0,1.31071455]
[1732317857239,0.55,3310.5,3310.0,1.31071455]
[1732317858586,0.55,3310.5,3310.4,1.31071455]
[1732317858880,0.7632,3310.8,3310.2,1.31071455]
[1732317858881,0.55,3310.7,3310.2,1.31071455]
[1732317859083,0.55,3310.5,3310.2,1.31071455]
[1732317859453,0.55,3310.3,3310.2,1.31071455]
[1732317863352,0.55,3310.3,3310.2,1.35236356]
[1732317872862,0.55,3310.3,3310.2,0.04164901]
[1732317873189,0.55,3310.3,3310.2,0.03893348]
[1732317873355,0.55,3310.3,3309.9,1.31071455]
[1732317873558,0.55,3310.3,3310.0,0.03893348]
[1732317873968,0.55,3310.1,3310.0,0.03893348]
[1732317874205,1.3333,3310.1,3309.6,0.3011]
[1732317874357,1.3333,3310.1,3308.8,0.03021132]
[1732317874358,0.7833,3309.8,3309.3,0.3011]
[1732317874555,0.0319113,3309.7,3309.3,0.3011]
[1732317874760,0.55,3309.6,3309.3,0.3011]
[1732317875158,0.7833,3309.8,3309.3,0.3011]
[1732317875365,0.55,3309.7,3309.2,1.31071455]
[1732317875870,0.55,3309.5,3309.2,1.31071455]
[1732317876378,0.55,3309.6,3309.2,1.31071455]
[1732317877801,0.55,3309.7,3309.2,1.31071455]
[1732317878008,0.55,3309.7,3309.6,1.31071455]
[1732317878361,0.55,3309.7,3309.6,1.34848398]
[1732317879099,0.55,3309.7,3309.6,0.03776943]
[1732317879408,0.7833,3309.6,3308.6,0.7793]
[1732317879573,0.7833,3309.6,3308.8,1.31071455]
[1732317879574,0.5819113,3309.5,3308.8,1.31071455]
[1732317879772,0.55,3309.3,3308.8,1.31071455]
[1732317879984,0.5819113,3309.3,3308.8,1.31071455]
[1732317880188,0.5819113,3309.3,3308.9,0.03532373]
[1732317880970,0.55,3309.3,3308.6,0.7793]
[1732317881171,0.55,3309.3,3308.7,0.03532373]
[1732317881698,0.55,3309.3,3308.7,0.33642373]
[1732317883310,0.55,3309.3,3308.7,0.7479961]
[1732317884209,0.55,3309.6,3309.1,0.7793]
[1732317884902,0.55,3309.6,3309.2,0.03539739]
[1732317885106,0.0319113,3309.5,3309.2,0.03539739]
[1732317885306,0.7833,3309.3,3309.2,0.03539739]
[1732317885515,0.7833,3309.3,3308.7,3.0715189]
[1732317885724,0.5819113,3309.2,3308.6,0.7793]
[1732317886207,0.5819113,3309.2,3308.3,4.0804]
[1732317886208,0.55,3309.0,3308.3,4.0804]
[1732317888315,5.0,3308.4,3308.3,4.0804]
[1732317888905,5.55,3308.4,3308.2,0.3011]
[1732317889103,0.55,3308.3,3308.1,0.7793]
[1732317890422,5.0,3308.2,3308.1,0.7793]
[1732317890915,5.55,3308.2,3308.1,0.7793]
[1732317891524,5.55,3308.2,3308.0,3.0]
[1732317891898,1.3243,3308.1,3307.5,0.8279]
[1732317892436,1.3243,3308.1,3306.2,0.2620446]
[1732317892437,0.55,3307.9,3307.2,0.8279]
[1732317892646,0.55,3307.6,3307.0,3.5983189]
[1732317892934,0.55,3307.6,3307.0,3.8994189]
[1732317893319,5.0,3307.2,3307.0,3.8994189]
[1732317893528,5.55,3307.2,3307.1,0.03557948]
[1732317894424,0.55,3307.2,3307.1,0.03557948]
[1732317895508,0.55,3307.2,3307.1,3.03557948]
[1732317896503,5.55,3307.2,3307.1,3.03557948]
[1732317901827,5.0,3307.2,3307.1,3.03557948]
[1732317906814,5.55,3307.2,3307.1,3.03557948]
[1732317907021,5.55,3307.2,3307.1,0.03557948]
[1732317907245,0.55,3307.1,3306.8,3.0]
[1732317907444,0.55,3307.1,3306.7,3.5993189]
[1732317907646,0.55,3307.1,3306.7,0.8289]
[1732317907859,0.55,3307.1,3306.4,3.5993189]
[1732317908159,0.55,3307.1,3306.4,2.7704189]
[1732317908338,5.0,3306.5,3306.4,2.7704189]
[1732317908543,5.0,3306.5,3306.4,5.7704189]
[1732317909369,5.55,3306.5,3306.4,5.7704189]
[1732317913465,0.55,3306.5,3306.4,5.7704189]
[1732317914354,5.0,3306.7,3306.5,3.7564]
[1732317914661,5.0,3306.7,3306.4,3.46059192]
[1732317914662,5.0,3306.7,3306.6,6.5268189]
[1732317915469,5.0,3307.1,3306.7,0.7564]
[1732317915795,5.0,3307.1,3307.0,6.5268189]
[1732317915952,5.0,3307.1,3307.0,7.17950079]
[1732317916366,5.0,3307.7,3307.1,3.0]
[1732317916861,0.55,3307.6,3307.3,2.7704189]
[1732317917091,0.55,3307.6,3307.5,5.7704189]
[1732317917588,5.55,3307.6,3307.5,5.7704189]
[1732317921378,0.55,3307.6,3307.5,5.7704189]
[1732317923461,5.0,3307.7,3307.5,5.80630576]
[1732317923655,5.0,3307.7,3307.6,4.33703058]
[1732317924070,5.0,3307.7,3307.6,4.3728771]
[1732317924456,5.0,3308.2,3307.6,4.3728771]
[1732317924660,5.0,3308.2,3307.9,2.7704189]
[1732317924900,5.0,3308.2,3308.1,0.7564]
[1732317925501,5.0,3308.4,3308.1,0.79223123]
[1732317925663,0.8031,3308.3,3308.2,3.0]
[1732317925864,0.8031,3308.3,3308.2,0.03582845]
[1732317926161,0.55,3308.2,3307.8,3.0]
[1732317927560,0.5819113,3308.2,3307.4,2.7704189]
[1732317927765,0.55,3308.2,3307.4,2.7704189]
[1732317928367,0.55,3307.8,3307.4,2.7704189]
[1732317929408,0.55,3307.6,3307.4,2.7704189]
[1732317932371,0.55,3307.6,3307.4,3.12831079]
[1732317932691,0.55,3307.8,3307.5,0.03568379]
[1732317932891,0.55,3307.8,3307.7,2.7704189]
[1732317933295,0.55,3307.8,3307.7,2.80610269]
[1732317935368,5.55,3307.8,3307.7,2.80610269]
[1732317936400,0.55,3307.8,3307.7,2.80610269]
[1732317936980,5.0,3307.9,3307.7,3.87531296]
[1732317937194,5.0,3307.9,3307.8,0.7886]
[1732317937513,5.0,3308.5,3307.9,0.3011]
[1732317937717,5.0,3308.5,3307.8,0.0659132]
[1732317937718,5.0,3308.5,3308.4,3.5590189]
[1732317938092,5.0,3308.5,3308.4,3.59463593]
[1732317938385,5.0,3309.0,3308.4,3.59463593]
[1732317938609,5.0,3309.0,3308.7,2.7704189]
[1732317938922,0.7658,3308.9,3308.0,0.03022027]
[1732317939118,0.7977113,3308.9,3307.9,0.7886]
[1732317939414,0.55,3308.8,3308.1,2.80603593]
[1732317939717,0.55,3308.8,3308.2,0.03561703]
[1732317940212,0.55,3308.6,3308.2,0.03561703]
[1732317940411,0.5819113,3308.6,3308.2,0.03561703]
[1732317940613,0.55,3308.4,3307.8,2.7704189]
[1732317940816,0.55,3308.6,3308.3,0.03561703]
[1732317941030,0.55,3308.6,3307.8,2.7704189]
[1732317941325,0.55,3308.1,3307.8,2.7704189]
[1732317941532,0.55,3308.1,3307.9,0.03561703]
[1732317942429,5.0,3308.0,3307.9,0.03561703]
[1732317942594,5.55,3308.0,3307.9,0.03561703]
[1732317942939,5.55,3308.0,3307.8,2.7704189]
[1732317944394,0.55,3308.0,3307.8,2.7704189]
[1732317944806,0.55,3308.0,3307.8,3.12632079]
[1732317945215,0.55,3308.0,3307.9,0.03561703]
[1732317945823,0.55,3308.1,3307.9,0.03561703]
[1732317947291,5.55,3308.1,3307.9,3.03561703]
[1732317948414,0.55,3308.1,3307.9,3.03561703]
[1732317949435,5.55,3308.1,3307.9,3.03561703]
[1732317951429,1.3158,3308.0,3307.9,0.03561703]
[1732317951849,1.3158,3308.0,3307.7,0.3011]
[1732317951850,0.55,3307.9,3307.7,0.3011]
[1732317952338,0.55,3307.9,3307.8,0.03556559]
[1732317952497,0.55,3307.9,3307.6,0.3011]
[1732317952717,0.55,3307.9,3307.7,0.03556559]
[1732317953421,5.0,3307.8,3307.7,0.03556559]
[1732317953754,5.55,3307.8,3307.7,0.03556559]
[1732317955449,5.0,3307.8,3307.7,0.03556559]
[1732317955751,5.55,3307.8,3307.7,0.03556559]
[1732317956556,5.0,3307.8,3307.7,0.03556559]
[1732317956717,5.55,3307.8,3307.7,0.03556559]
[1732317961384,5.0,3307.8,3307.7,0.64627404]
[1732317962330,5.0,3307.8,3307.7,3.03556559]
[1732317967157,5.0,3307.8,3307.7,3.33666559]
[1732317973531,5.0,3307.8,3307.7,3.03556559]
[1732317974336,5.0,3308.0,3307.7,3.03556559]
[1732317974653,5.0,3308.0,3307.9,1.31190879]
[1732317975171,5.0,3308.0,3307.9,1.34636434]
[1732317976292,5.0,3308.1,3307.9,1.34636434]
[1732317977192,5.55,3308.1,3307.9,1.34636434]
[1732317977400,5.0,3308.0,3307.9,1.34636434]
[1732317978608,5.0,3308.1,3307.9,1.34636434]
[1732317981385,5.55,3308.2,3307.9,1.34636434]
[1732317982326,5.0,3308.1,3307.9,1.34636434]
[1732317983222,5.0,3308.1,3308.0,1.31190879]
[1732317983504,5.0,3308.6,3308.0,4.61300879]
[1732317983691,5.0,3308.6,3308.5,1.31190879]
[1732317984090,5.0,3308.6,3308.5,1.34631011]
[1732317984417,5.0,3308.8,3308.5,1.34631011]
[1732317984571,5.0,3308.8,3308.7,1.31190879]
[1732317984882,5.0,3308.8,3308.7,1.34613638]
[1732317985268,5.0,3308.9,3308.7,2.13763638]
[1732317986267,5.0,3308.9,3308.7,2.35140002]
[1732317986684,0.55,3308.8,3308.7,0.03422759]
[1732317986981,1.3239,3308.8,3308.4,1.31190879]
[1732317987303,1.3239,3308.8,3308.5,3.03306958]
[1732317987488,6.3239,3308.8,3308.5,0.03306958]
[1732317987817,6.3239,3308.8,3308.4,1.31190879]
[1732317988199,6.3239,3308.8,3308.5,0.03197105]
[1732317989272,1.3239,3308.8,3308.5,0.03197105]
[1732317989614,5.0,3308.6,3308.5,0.03197105]
[1732317991122,5.0,3308.6,3308.1,3.3011]
[1732317991327,5.0,3308.6,3308.5,0.03197522]
[1732317991503,5.0,3308.6,3308.1,3.3011]
[1732317992001,5.0,3308.6,3308.2,0.03197522]
[1732317992407,5.0,3308.4,3308.2,0.03197522]
[1732317992583,5.0,3308.4,3308.2,0.64237661]
[1732317995429,5.0,3308.4,3308.2,0.03197522]
[1732317997333,5.0,3308.6,3308.2,0.03197522]
[1732317998429,5.0,3308.6,3308.3,0.8112]
[1732317998920,5.0,3308.6,3308.4,0.0319905]
[1732318000137,5.0,3308.6,3308.4,3.0319905]
[1732318000424,5.0,3308.7,3308.5,0.66141291]
[1732318000627,0.7955,3308.6,3308.4,0.0319905]
[1732318000837,5.0,3308.7,3308.6,0.03197521]
[1732318000995,5.0,3308.7,3308.1,3.38843679]
[1732318001333,5.0,3308.7,3308.2,0.03197521]
[1732318001627,5.0,3308.7,3308.3,0.3420412]
[1732318002200,5.0,3308.7,3308.4,0.03197521]
[1732318003528,5.0,3308.7,3308.5,0.8112]
[1732318003911,5.0,3308.7,3308.6,0.03198633]
[1732318004534,5.0,3308.9,3308.6,0.03198633]
[1732318005509,5.0,3308.9,3308.6,0.72350883]
[1732318007211,5.0,3308.9,3308.7,0.3011]
[1732318007524,5.0,3308.9,3308.6,0.72350883]
[1732318007707,5.0,3308.9,3308.8,0.03194463]
[1732318007894,5.0,3308.9,3308.6,0.6915225]
[1732318008094,5.0,3308.9,3308.8,0.03190849]
[1732318008319,5.0,3308.8,3308.6,0.6915225]
[1732318008517,5.0,3308.8,3308.5,3.8112]
[1732318008838,5.0,3308.8,3308.5,4.1123]
[1732318010440,5.0,3308.7,3308.5,4.1123]
[1732318010600,5.0,3308.7,3308.6,1.31132247]
[1732318011436,5.0,3308.9,3308.5,0.8112]
[1732318011640,0.8123,3308.8,3308.5,3.0]
[1732318012000,0.8123,3308.8,3308.3,1.31132247]
[1732318012501,5.0,3308.7,3308.3,1.31132247]
[1732318014310,5.0,3308.5,3308.3,1.31132247]
[1732318015539,5.0,3308.5,3308.3,4.54762472]
[1732318016032,5.0,3308.5,3308.4,0.03189877]
[1732318016331,5.0,3308.5,3308.4,1.34322124]
[1732318016567,0.8123,3308.8,3308.4,1.34322124]
[1732318016723,5.0,3308.6,3308.4,1.34322124]
[1732318017537,5.0,3308.5,3308.4,1.34322124]
[1732318018323,5.0,3308.5,3308.4,1.90635359]
[1732318019543,5.0,3308.7,3308.4,1.90635359]
[1732318020415,5.0,3308.6,3308.4,0.59503112]
[1732318020614,5.0,3308.6,3308.5,1.31132247]
[1732318020811,5.0,3308.6,3308.5,2.07642247]
[1732318021049,5.0,3308.6,3308.5,2.1083782]
[1732318021378,5.0,3309.1,3308.5,2.1083782]
[1732318021657,5.0,3309.1,3309.0,1.31132247]
[1732318021952,5.0,3309.1,3309.0,2.07642247]
[1732318022257,5.0,3309.1,3309.0,2.10834624]
[1732318022464,5.0,3309.4,3309.0,3.41966871]
[1732318022749,5.0,3309.4,3309.3,2.07642247]
[1732318023160,5.0,3309.4,3309.3,2.108299]
[1732318023453,5.0,3309.7,3309.3,2.108299]
[1732318023652,0.7503,3309.6,3309.3,0.03187653]
[1732318023947,0.54387523,3309.5,3309.3,0.03187653]
[1732318024152,0.54387523,3309.5,3309.0,1.31132247]
[1732318024362,0.54387523,3309.5,3309.4,0.02970975]
[1732318024527,0.54387523,3309.5,3309.0,1.31132247]
[1732318024716,0.54387523,3309.5,3309.4,0.02970975]
[1732318024921,0.54387523,3309.5,3309.0,1.31132247]
[1732318025460,5.0,3309.2,3309.1,0.02970975]
[1732318026455,5.0,3309.5,3309.1,0.02970975]
[1732318026618,5.0,3309.5,3309.2,1.31132247]
[1732318027328,5.0,3309.5,3309.4,1.31132247]
[1732318027526,5.0,3309.5,3309.4,1.52830569]
[1732318027862,5.0,3309.5,3309.4,1.37801544]
[1732318028565,5.8052,3309.9,3309.4,1.37801544]
[1732318028723,5.8052,3309.9,3309.4,0.24669297]